fUSD/lending_fUSD_20260508
["ID","MTS","AMOUNT","RATE_DAILY","PERIOD"]
[421862862,1778244632000,-150.0,0.00014525,2]
[421862863,1778244632000,-150.0,0.00014525,2]
[421862850,1778244632000,-350.0,0.00014458,2]
[421862860,1778244632000,-150.0,0.00014525,2]
[421862864,1778244632000,-159.03691749,0.00014525,2]
[421862874,1778244632000,-500.0,0.00014725,2]
[421862867,1778244632000,-500.0,0.00014725,2]
[421862877,1778244632000,-500.0,0.00014725,2]
[421862878,1778244632000,-500.0,0.00014725,2]
[421862871,1778244632000,-189.22134171,0.00014725,2]
[421862861,1778244632000,-150.0,0.00014525,2]
[421862848,1778244632000,-3442.73,0.00014151,2]
[421862842,1778244632000,-250.0,0.00014,2]
[421862846,1778244632000,-2500.0,0.00014068,2]
[421862869,1778244632000,-150.0,0.00014725,2]
[421862832,1778244632000,-1183.76188348,0.00013593,2]
[421862837,1778244632000,-200.0,0.00013699,2]
[421862835,1778244632000,-150.0,0.0001368,2]
[421862836,1778244632000,-163.1,0.00013691,2]
[421862840,1778244632000,-2000.0,0.00013836,2]
[421862833,1778244632000,-305.79743711,0.00013593,2]
[421862838,1778244632000,-1533.31,0.00013702,2]
[421862849,1778244632000,-233.22273464,0.00014418,2]
[421862839,1778244632000,-2399.2,0.00013796,2]
[421862834,1778244632000,-18583.75067941,0.00013593,2]
[421862843,1778244632000,-250.0,0.00014022,2]
[421862851,1778244632000,-2399.2,0.00014468,2]
[421862852,1778244632000,-350.0,0.00014507,2]
[421862845,1778244632000,-7546.46,0.00014041,2]
[421862844,1778244632000,-167.16623666,0.00014022,2]
[421862853,1778244632000,-159.1511202,0.00014525,2]
[421862854,1778244632000,-150.0,0.00014525,2]
[421862841,1778244632000,-21184.86,0.00013923,2]
[421862876,1778244632000,-500.0,0.00014725,2]
[421862868,1778244632000,-210.08818589,0.00014725,2]
[421862872,1778244632000,-150.0,0.00014725,2]
[421862899,1778244632000,-500.0,0.00014799,2]
[421862897,1778244632000,-500.0,0.00014799,2]
[421862898,1778244632000,-500.0,0.00014799,2]
[421862903,1778244632000,-500.0,0.00014799,2]
[421862901,1778244632000,-500.0,0.00014799,2]
[421862902,1778244632000,-500.0,0.00014799,2]
[421862905,1778244632000,-500.0,0.00014799,2]
[421862908,1778244632000,-500.0,0.00014799,2]
[421862906,1778244632000,-500.0,0.00014799,2]
[421862910,1778244632000,-500.0,0.00014799,2]
[421862907,1778244632000,-437.3476104,0.00014799,2]
[421862911,1778244632000,-500.0,0.00014799,2]
[421862912,1778244632000,-48407.68506929,0.000148,2]
[421862913,1778244632000,-1643.28648699,0.000148,2]
[421862914,1778244632000,-391.88,0.000148,2]
[421862916,1778244632000,-8732.43012666,0.000148,2]
[421862917,1778244632000,-607.56498033,0.000148,2]
[421862915,1778244632000,-1421.69894956,0.000148,2]
[421862875,1778244632000,-500.0,0.00014725,2]
[421862895,1778244632000,-500.0,0.00014799,2]
[421862900,1778244632000,-500.0,0.00014799,2]
[421862909,1778244632000,-500.0,0.00014799,2]
[421862893,1778244632000,-606.39682547,0.00014799,2]
[421862870,1778244632000,-150.0,0.00014725,2]
[421862873,1778244632000,-500.0,0.00014725,2]
[421862880,1778244632000,-500.0,0.00014725,2]
[421862891,1778244632000,-500.0,0.00014799,2]
[421862892,1778244632000,-500.0,0.00014799,2]
[421862918,1778244632000,-255.83894739,0.000148,2]
[421862881,1778244632000,-150.0,0.00014725,2]
[421862884,1778244632000,-500.0,0.00014725,2]
[421862896,1778244632000,-500.0,0.00014799,2]
[421862883,1778244632000,-150.0,0.00014725,2]
[421862885,1778244632000,-500.0,0.00014725,2]
[421862882,1778244632000,-500.0,0.00014725,2]
[421862889,1778244632000,-462.14052819,0.00014799,2]
[421862890,1778244632000,-500.0,0.00014799,2]
[421862888,1778244632000,-500.0,0.00014799,2]
[421862886,1778244632000,-333.49789671,0.00014799,2]
[421862887,1778244632000,-500.0,0.00014799,2]
[421862894,1778244632000,-293.08181688,0.00014799,2]
[421862904,1778244632000,-500.0,0.00014799,2]
[421862879,1778244632000,-150.0,0.00014725,2]
[421862919,1778244634000,-13908.0,0.000148,2]
[421862956,1778244638000,-1301.86348862,0.000148,2]
[421862955,1778244638000,-4206.7944786,0.000148,2]
[421862957,1778244638000,-26491.54762082,0.000148,2]
[421862959,1778244638000,-251.92529816,0.000148,2]
[421862958,1778244638000,-380.52932165,0.000148,2]
[421863182,1778244640000,-500.0,0.00014898,2]
[421863180,1778244640000,-500.0,0.00014883,2]
[421863178,1778244640000,-398.38121662,0.00014873,2]
[421863176,1778244640000,-500.0,0.00014873,2]
[421863197,1778244640000,-307.95213441,0.000149,2]
[421863195,1778244640000,-5000.0,0.000149,2]
[421863189,1778244640000,-151.09541375,0.000149,2]
[421863191,1778244640000,-2949.8117,0.000149,2]
[421863193,1778244640000,-526.0,0.000149,5]
[421863187,1778244640000,-487954.1078,0.00014899,2]
[421863170,1778244640000,-2000.0,0.00014824,2]
[421863168,1778244640000,-2399.2,0.00014805,2]
[421863165,1778244640000,-182.2804244,0.000148,2]
[421863172,1778244640000,-183.70581575,0.00014873,2]
[421863163,1778244640000,-351194.86493193,0.000148,2]
[421863184,1778244640000,-500.0,0.00014898,2]
[421863174,1778244640000,-500.0,0.00014873,2]
[421863202,1778244640000,-500.0,0.00014973,2]
[421863200,1778244640000,-1680.0,0.00014948,2]
[421863205,1778244640000,-1437.287799,0.00014985,2]
[421863235,1778244640000,-2307.73880796,0.00015,2]
[421863229,1778244640000,-651.0,0.00015,5]
[421863231,1778244640000,-750712.13446651,0.00015,2]
[421863227,1778244640000,-500.0,0.00014999,2]
[421863225,1778244640000,-500.0,0.00014999,2]
[421863223,1778244640000,-500.0,0.00014999,2]
[421863221,1778244640000,-500.0,0.00014999,2]
[421863217,1778244640000,-500.0,0.00014999,2]
[421863219,1778244640000,-500.0,0.00014999,2]
[421863215,1778244640000,-500.0,0.00014999,2]
[421863204,1778244640000,-244.52,0.00014985,2]
[421863208,1778244640000,-439.53953015,0.0001499,2]
[421863209,1778244640000,-151.0,0.00014997,2]
[421863211,1778244640000,-151.0,0.00014997,2]
[421863213,1778244640000,-608.26262482,0.00014999,2]
[421863247,1778244640000,-922.18333418,0.00015,2]
[421863249,1778244640000,-545.03444254,0.00015,2]
[421863743,1778244646000,-17981.11047751,0.00015,2]
[421863747,1778244646000,-1133.48610485,0.00015,2]
[421863748,1778244646000,-8744.789466,0.00015,2]
[421863763,1778245202000,350.0,0.000301,120]
[421863774,1778245716000,300.0,0.00030137,120]
[421863792,1778245832000,-150.0,0.00014128,2]
[421863791,1778245832000,-765.81,0.00014062,2]
[421863793,1778245832000,-150.00000001,0.00014247,21]
[421863799,1778245832000,-396.0,0.00014466,2]
[421863801,1778245832000,-500.0,0.00014581,2]
[421863806,1778245832000,-500.0,0.00014581,2]
[421863804,1778245832000,-500.0,0.00014581,2]
[421863814,1778245832000,-501.01972691,0.00014581,2]
[421863807,1778245832000,-500.0,0.00014581,2]
[421863809,1778245832000,-216.62043899,0.00014581,2]
[421863811,1778245832000,-500.0,0.00014581,2]
[421863808,1778245832000,-500.0,0.00014581,2]
[421863810,1778245832000,-500.0,0.00014581,2]
[421863813,1778245832000,-500.0,0.00014581,2]
[421863812,1778245832000,-500.0,0.00014581,2]
[421863797,1778245832000,-165.13,0.00014443,2]
[421863781,1778245832000,-17572.82,0.0001368,2]
[421863790,1778245832000,-200.0,0.00014003,2]
[421863821,1778245832000,-500.0,0.00014581,2]
[421863775,1778245832000,-150.0,0.00013488,2]
[421863776,1778245832000,-150.0,0.00013488,2]
[421863777,1778245832000,-150.0,0.00013488,2]
[421863780,1778245832000,-1200.0,0.00013679,2]
[421863778,1778245832000,-300.0,0.00013679,2]
[421863794,1778245832000,-541.0,0.00014301,2]
[421863782,1778245832000,-2000.0,0.00013694,2]
[421863786,1778245832000,-244.2294,0.00013841,2]
[421863785,1778245832000,-2909.0,0.00013775,2]
[421863783,1778245832000,-1193.35,0.00013715,2]
[421863788,1778245832000,-150.15,0.00013936,2]
[421863787,1778245832000,-500.0,0.00013909,2]
[421863789,1778245832000,-250.0,0.00014,2]
[421863784,1778245832000,-200.0,0.00013739,2]
[421863817,1778245832000,-500.0,0.00014581,2]
[421863779,1778245832000,-300.0,0.00013679,2]
[421863820,1778245832000,-500.0,0.00014581,2]
[421863840,1778245832000,-500.0,0.00014855,2]
[421863841,1778245832000,-519.29483891,0.00014855,2]
[421863838,1778245832000,-500.0,0.00014855,2]
[421863842,1778245832000,-500.0,0.00014855,2]
[421863839,1778245832000,-500.0,0.00014855,2]
[421863852,1778245832000,-1731.53667318,0.00014856,2]
[421863846,1778245832000,-500.0,0.00014855,2]
[421863850,1778245832000,-551.96948306,0.00014855,2]
[421863844,1778245832000,-500.0,0.00014855,2]
[421863847,1778245832000,-500.0,0.00014855,2]
[421863848,1778245832000,-156.86292928,0.00014855,2]
[421863851,1778245832000,-4336.15630193,0.00014856,2]
[421863843,1778245832000,-500.0,0.00014855,2]
[421863849,1778245832000,-635.77395225,0.00014855,2]
[421863816,1778245832000,-500.0,0.00014581,2]
[421863837,1778245832000,-1731.53667318,0.00014847,2]
[421863834,1778245832000,-4336.15630193,0.00014838,2]
[421863845,1778245832000,-500.0,0.00014855,2]
[421863836,1778245832000,-4336.15630193,0.00014847,2]
[421863818,1778245832000,-500.0,0.00014581,2]
[421863835,1778245832000,-1731.53667318,0.00014839,2]
[421863815,1778245832000,-500.0,0.00014581,2]
[421863819,1778245832000,-500.0,0.00014581,2]
[421863823,1778245832000,-2772.0,0.000147,2]
[421863826,1778245832000,-150.15,0.00014807,2]
[421863824,1778245832000,-4717.22369454,0.00014755,2]
[421863825,1778245832000,-150.0,0.00014799,2]
[421863822,1778245832000,-544.95889557,0.00014581,2]
[421863832,1778245832000,-1731.53667318,0.0001483,2]
[421863828,1778245832000,-1731.53667324,0.00014821,2]
[421863829,1778245832000,-26491.5476,0.00014821,2]
[421863831,1778245832000,-4336.15630193,0.00014829,2]
[421863830,1778245832000,-6750.6748,0.00014821,2]
[421863833,1778245832000,-300.0,0.00014836,2]
[421863827,1778245832000,-4336.15630193,0.0001482,2]
[421863863,1778245833000,-152.0,0.00014895,7]
[421863866,1778245833000,-1731.53667318,0.000149,2]
[421863869,1778245833000,-856.46078432,0.000149,2]
[421863865,1778245833000,-427.48123033,0.000149,2]
[421863860,1778245833000,-1731.53667318,0.00014891,2]
[421863861,1778245833000,-1073.7405759,0.00014895,2]
[421863856,1778245833000,-1731.53667318,0.00014874,2]
[421863858,1778245833000,-1731.53667318,0.00014882,2]
[421863857,1778245833000,-4336.15630193,0.00014882,2]
[421863855,1778245833000,-4336.15630193,0.00014873,2]
[421863853,1778245833000,-4336.15630193,0.00014864,2]
[421863854,1778245833000,-1731.53667318,0.00014865,2]
[421863862,1778245833000,-152.0,0.00014895,7]
[421863859,1778245833000,-4336.15630193,0.00014891,2]
[421863867,1778245833000,-746.93262672,0.000149,2]
[421863878,1778245833000,-500.0,0.0001492,2]
[421863871,1778245833000,-2589.67545925,0.000149,2]
[421863864,1778245833000,-5000.0,0.000149,2]
[421863884,1778245833000,-6245.60605596,0.00014921,2]
[421863881,1778245833000,-7702.5669505,0.00014921,2]
[421863882,1778245833000,-65213.2936675,0.00014921,2]
[421863883,1778245833000,-19346.28429876,0.00014921,2]
[421863877,1778245833000,-500.0,0.0001492,2]
[421863876,1778245833000,-500.0,0.0001492,2]
[421863880,1778245833000,-500.0,0.0001492,2]
[421863875,1778245833000,-500.0,0.0001492,2]
[421863874,1778245833000,-500.0,0.0001492,2]
[421863872,1778245833000,-500.0,0.0001492,2]
[421863873,1778245833000,-500.0,0.0001492,2]
[421863868,1778245833000,-1391.46614966,0.000149,2]
[421863870,1778245833000,-4336.15630193,0.000149,2]
[421863879,1778245833000,-501.931273,0.0001492,2]
[421863915,1778245838000,-48109.2972924,0.00014921,2]
[421863914,1778245838000,-19162.7014072,0.00014921,2]
[421863913,1778245838000,-9700.1234196,0.00014921,2]
[421863910,1778245838000,-632.10199298,0.00014921,2]
[421863911,1778245838000,-1283.61357319,0.00014921,2]
[421863912,1778245838000,-239034.24826055,0.00014921,2]
[421863908,1778245838000,-4427.92057333,0.00014921,2]
[421863898,1778245838000,-1182.20121288,0.00014921,2]
[421863906,1778245838000,-1141.47131779,0.00014921,2]
[421863904,1778245838000,-5450.76593417,0.00014921,2]
[421863905,1778245838000,-906.56824085,0.00014921,2]
[421863897,1778245838000,-500.0,0.0001492,2]
[421863899,1778245838000,-475.1551,0.00014921,2]
[421863917,1778245838000,-482.76139056,0.00014973,2]
[421863909,1778245838000,-380.52932165,0.00014921,2]
[421863924,1778245838000,-1000.0,0.00014999,2]
[421863907,1778245838000,-22063.62704749,0.00014921,2]
[421863921,1778245838000,-293.02635343,0.0001499,2]
[421863932,1778245838000,-304.86310904,0.00015,2]
[421863931,1778245838000,-151.0,0.00015,2]
[421863930,1778245838000,-5500.0,0.00015,2]
[421863928,1778245838000,-90468.99035698,0.00015,2]
[421863934,1778245838000,-7204887.33366264,0.00015,2]
[421863929,1778245838000,-69713.16362242,0.00015,2]
[421863933,1778245838000,-200.0,0.00015,2]
[421863922,1778245838000,-151.0,0.00014997,2]
[421863925,1778245838000,-356.17682839,0.00014999,2]
[421863926,1778245838000,-536.57156268,0.00014999,2]
[421863916,1778245838000,-457.24022354,0.00014964,2]
[421863919,1778245838000,-293.02635343,0.0001499,2]
[421863918,1778245838000,-150.0,0.00014986,2]
[421863920,1778245838000,-293.02635343,0.0001499,2]
[421863923,1778245838000,-500.0,0.00014999,2]
[421863927,1778245838000,-338.0,0.00015,5]
[421864246,1778245843000,-38.14766256,0.000149,2]
[421864247,1778245843000,-149.62566984,0.000149,2]
[421864248,1778245843000,-706.13145286,0.00015,2]
[421864252,1778245846000,-3104.588709,0.00015,2]
[421864259,1778246045000,2125.86,0.00030136,120]
[421864264,1778246384000,58.50858784,0.0001,2]
[421864263,1778246384000,97.21647138,0.0001,2]
[421864265,1778246408000,152.0,0.00010014,30]
[421864266,1778246494000,-151.74412025,0.00010014,2]
[421864267,1778246538000,155.73,7.072e-05,2]
[421864268,1778246538000,155.73,7.577e-05,2]
[421864269,1778246538000,155.73,8.082e-05,2]
[421864272,1778246539000,155.73,9.597e-05,2]
[421864270,1778246539000,155.73,8.587e-05,2]
[421864271,1778246539000,155.73,9.092e-05,2]
[421864274,1778246605000,152.0,0.00010006,30]
[421864275,1778246682000,192.21,0.00029452,120]
[421864281,1778246699000,-161.28,0.00010961,2]
[421864280,1778246699000,-250.0,0.00010821,2]
[421864278,1778246699000,-155.73,0.00010607,2]
[421864279,1778246699000,-150.0,0.00010715,2]
[421864277,1778246699000,-155.73,0.00010102,2]
[421864276,1778246699000,-108.25587975,0.00010014,2]
[421864282,1778246711000,-155.73,0.00011113,2]
[421864283,1778246758000,-155.73,0.00011618,2]
[421864293,1778246838000,-1000.0,0.00013552,2]
[421864292,1778246838000,-150.0,0.00013551,2]
[421864290,1778246838000,-1200.0,0.00013551,2]
[421864291,1778246838000,-300.0,0.00013551,2]
[421864289,1778246838000,-300.0,0.0001355,2]
[421864288,1778246838000,-2701.2658332,0.0001352,2]
[421864286,1778246838000,-155.73,0.00013133,2]
[421864287,1778246838000,-194.6632627,0.0001352,2]
[421864284,1778246838000,-155.73,0.00012123,2]
[421864285,1778246838000,-155.73,0.00012628,2]
[421864294,1778246838000,-3686.8809041,0.00013552,2]
[421864296,1778246910000,-10000.0,0.00013552,2]
[421864299,1778246982000,-9505.33673731,0.00013552,2]
[421864297,1778246982000,-194.66326269,0.0001352,2]
[421864298,1778246982000,-300.0,0.00013551,2]
[421864300,1778246999000,-10000.0,0.00013552,2]
[421864303,1778247009000,-8500.0,0.00013552,2]
[421864301,1778247009000,-300.0,0.00013551,2]
[421864302,1778247009000,-1200.0,0.00013551,2]
[421864304,1778247017000,-10000.0,0.00013552,2]
[421864355,1778247032000,-500.0,0.00014993,2]
[421864329,1778247032000,-7182.72762969,0.000149,2]
[421864332,1778247032000,-500.0,0.00014993,2]
[421864342,1778247032000,-500.0,0.00014993,2]
[421864340,1778247032000,-500.0,0.00014993,2]
[421864330,1778247032000,-1679.0,0.00014907,2]
[421864341,1778247032000,-500.0,0.00014993,2]
[421864331,1778247032000,-500.0,0.00014993,2]
[421864336,1778247032000,-500.0,0.00014993,2]
[421864335,1778247032000,-500.0,0.00014993,2]
[421864337,1778247032000,-500.0,0.00014993,2]
[421864318,1778247032000,-160.92,0.00014,2]
[421864334,1778247032000,-500.0,0.00014993,2]
[421864338,1778247032000,-500.0,0.00014993,2]
[421864339,1778247032000,-500.0,0.00014993,2]
[421864345,1778247032000,-500.0,0.00014993,2]
[421864346,1778247032000,-500.0,0.00014993,2]
[421864343,1778247032000,-500.0,0.00014993,2]
[421864333,1778247032000,-500.0,0.00014993,2]
[421864323,1778247032000,-150.0,0.00014725,2]
[421864327,1778247032000,-152.0,0.00014894,7]
[421864320,1778247032000,-200.0,0.00014156,2]
[421864306,1778247032000,-100.0,0.00013552,2]
[421864305,1778247032000,-300.0,0.00012643,2]
[421864307,1778247032000,-591.86802884,0.00013552,2]
[421864308,1778247032000,-557.6907513,0.00013552,2]
[421864309,1778247032000,-74028.64357845,0.00013552,2]
[421864310,1778247032000,-596.67,0.0001362,2]
[421864311,1778247032000,-155.73,0.00013638,2]
[421864316,1778247032000,-500.0,0.00014,2]
[421864315,1778247032000,-150.0,0.00013979,2]
[421864314,1778247032000,-379.748,0.00013862,2]
[421864313,1778247032000,-200.0,0.00013839,2]
[421864312,1778247032000,-2000.0,0.00013774,2]
[421864317,1778247032000,-598.15,0.00014,2]
[421864321,1778247032000,-12481.96,0.00014156,2]
[421864322,1778247032000,-350.0,0.00014505,2]
[421864319,1778247032000,-155.73,0.00014143,2]
[421864324,1778247032000,-296.6104039,0.00014725,2]
[421864326,1778247032000,-526.44908795,0.00014863,2]
[421864325,1778247032000,-420.0,0.00014853,2]
[421864328,1778247032000,-152.0,0.00014898,7]
[421864347,1778247032000,-500.0,0.00014993,2]
[421864366,1778247032000,-500.0,0.00014993,2]
[421864348,1778247032000,-500.0,0.00014993,2]
[421864381,1778247032000,-500.0,0.00014993,2]
[421864382,1778247032000,-500.0,0.00014993,2]
[421864374,1778247032000,-500.0,0.00014993,2]
[421864375,1778247032000,-500.0,0.00014993,2]
[421864377,1778247032000,-500.0,0.00014993,2]
[421864376,1778247032000,-500.0,0.00014993,2]
[421864379,1778247032000,-500.0,0.00014993,2]
[421864378,1778247032000,-500.0,0.00014993,2]
[421864372,1778247032000,-500.0,0.00014993,2]
[421864387,1778247032000,-500.0,0.00014993,2]
[421864383,1778247032000,-500.0,0.00014993,2]
[421864386,1778247032000,-500.0,0.00014993,2]
[421864388,1778247032000,-500.0,0.00014993,2]
[421864389,1778247032000,-500.0,0.00014993,2]
[421864390,1778247032000,-500.0,0.00014993,2]
[421864391,1778247032000,-462.10932743,0.00014993,2]
[421864384,1778247032000,-500.0,0.00014993,2]
[421864344,1778247032000,-500.0,0.00014993,2]
[421864385,1778247032000,-621.09327437,0.00014993,2]
[421864370,1778247032000,-500.0,0.00014993,2]
[421864380,1778247032000,-500.0,0.00014993,2]
[421864373,1778247032000,-500.0,0.00014993,2]
[421864349,1778247032000,-500.0,0.00014993,2]
[421864350,1778247032000,-500.0,0.00014993,2]
[421864354,1778247032000,-500.0,0.00014993,2]
[421864352,1778247032000,-205.17866804,0.00014993,2]
[421864353,1778247032000,-500.0,0.00014993,2]
[421864357,1778247032000,-500.0,0.00014993,2]
[421864368,1778247032000,-500.0,0.00014993,2]
[421864362,1778247032000,-500.0,0.00014993,2]
[421864359,1778247032000,-500.0,0.00014993,2]
[421864351,1778247032000,-500.0,0.00014993,2]
[421864358,1778247032000,-500.0,0.00014993,2]
[421864360,1778247032000,-500.0,0.00014993,2]
[421864363,1778247032000,-500.0,0.00014993,2]
[421864367,1778247032000,-500.0,0.00014993,2]
[421864361,1778247032000,-500.0,0.00014993,2]
[421864364,1778247032000,-500.0,0.00014993,2]
[421864365,1778247032000,-500.0,0.00014993,2]
[421864369,1778247032000,-500.0,0.00014993,2]
[421864371,1778247032000,-500.0,0.00014993,2]
[421864356,1778247032000,-500.0,0.00014993,2]
[421864428,1778247033000,-2000.0,0.00015496,2]
[421864427,1778247033000,-2658.71,0.00015464,2]
[421864426,1778247033000,-1351.94,0.00015464,2]
[421864424,1778247033000,-517.80708361,0.0001539,2]
[421864414,1778247033000,-517.80708361,0.00015214,2]
[421864418,1778247033000,-2022.45397758,0.0001525,2]
[421864423,1778247033000,-2022.45397758,0.00015364,2]
[421864422,1778247033000,-2022.45397758,0.00015295,2]
[421864425,1778247033000,-517.80708361,0.00015395,2]
[421864419,1778247033000,-531.77768722,0.00015257,2]
[421864434,1778247033000,-952.99619113,0.00015677,2]
[421864436,1778247033000,-952.99619113,0.00015745,2]
[421864435,1778247033000,-150.15,0.00015678,2]
[421864430,1778247033000,-952.99619113,0.0001552,2]
[421864429,1778247033000,-952.99619113,0.00015507,2]
[421864431,1778247033000,-952.99619113,0.00015608,2]
[421864432,1778247033000,-952.99619113,0.00015617,2]
[421864437,1778247033000,-500.0,0.00015899,2]
[421864447,1778247033000,-952.99619113,0.00016198,2]
[421864439,1778247033000,-1800.0,0.00016,2]
[421864441,1778247033000,-5923.81,0.00016116,2]
[421864412,1778247033000,-300.0,0.000152,2]
[421864440,1778247033000,-172.59,0.0001602,2]
[421864433,1778247033000,-350.0,0.00015634,2]
[421864416,1778247033000,-517.80708361,0.00015228,2]
[421864405,1778247033000,-516.94609672,0.00015,2]
[421864417,1778247033000,-214.68143985,0.00015234,2]
[421864392,1778247033000,-152.0,0.00014995,7]
[421864393,1778247033000,-2102.1632247,0.00014995,2]
[421864394,1778247033000,-4108.5400068,0.00014995,2]
[421864395,1778247033000,-58548.571881,0.00014995,2]
[421864397,1778247033000,-37277.3967003,0.00014996,2]
[421864407,1778247033000,-2022.45397758,0.0001512,2]
[421864408,1778247033000,-350.0,0.00015128,2]
[421864403,1778247033000,-152.0,0.00015,2]
[421864396,1778247033000,-6140.7583498,0.00014996,2]
[421864399,1778247033000,-2503.58309882,0.00015,14]
[421864406,1778247033000,-152.0,0.00015048,7]
[421864398,1778247033000,-159154.7221851,0.00015,2]
[421864409,1778247033000,-531.77768722,0.00015128,2]
[421864400,1778247033000,-151.0,0.00015,2]
[421864401,1778247033000,-304.86310904,0.00015,2]
[421864438,1778247033000,-300.0,0.00016,2]
[421864402,1778247033000,-500.0,0.00015,2]
[421864404,1778247033000,-1890.15932648,0.00015,2]
[421864411,1778247033000,-531.77768722,0.00015165,2]
[421864420,1778247033000,-517.80708361,0.00015268,2]
[421864410,1778247033000,-517.80708361,0.00015128,2]
[421864421,1778247033000,-503.02373868,0.00015274,2]
[421864413,1778247033000,-531.77768722,0.000152,2]
[421864415,1778247033000,-207.99170503,0.00015227,2]
[421864445,1778247033000,-1557.63,0.00016116,2]
[421864449,1778247033000,-952.99619113,0.0001633,2]
[421864444,1778247033000,-4999.99,0.00016116,2]
[421864442,1778247033000,-8504.21,0.00016116,2]
[421864473,1778247033000,-529.7,0.0001841,2]
[421864475,1778247033000,-1351.94,0.0001872,2]
[421864482,1778247033000,-557.0,0.00019,2]
[421864478,1778247033000,-156.0,0.00019,2]
[421864476,1778247033000,-6635.9,0.0001872,2]
[421864479,1778247033000,-442.0,0.00019,2]
[421864481,1778247033000,-223.0,0.00019,2]
[421864474,1778247033000,-310.11,0.0001872,2]
[421864483,1778247033000,-596.67,0.00019068,2]
[421864484,1778247033000,-150.15,0.00019162,2]
[421864472,1778247033000,-166.83339655,0.000184,2]
[421864486,1778247033000,-500.0,0.00019178,2]
[421864488,1778247033000,-1716.0,0.0001938,5]
[421864485,1778247033000,-500.0,0.00019178,2]
[421864490,1778247033000,-271.72797687,0.00019973,2]
[421864489,1778247033000,-3598.0,0.0001938,5]
[421864492,1778247033000,-400.0,0.0002,2]
[421864491,1778247033000,-51960.24523687,0.0002,2]
[421864494,1778247033000,-442.0,0.0002,2]
[421864493,1778247033000,-159.0,0.0002,2]
[421864495,1778247033000,-199.06317263,0.0002,2]
[421864497,1778247033000,-331.0,0.0002,2]
[421864496,1778247033000,-199.06317263,0.0002,2]
[421864487,1778247033000,-2027.08,0.00019178,2]
[421864477,1778247033000,-2000.0,0.0001894,2]
[421864480,1778247033000,-331.0,0.00019,2]
[421864465,1778247033000,-2382.87394491,0.00017572,2]
[421864443,1778247033000,-150.99,0.00016116,2]
[421864446,1778247033000,-952.99619113,0.00016159,2]
[421864448,1778247033000,-587.0,0.0001628,2]
[421864450,1778247033000,-952.99619113,0.00016331,2]
[421864452,1778247033000,-308.0,0.000164,2]
[421864453,1778247033000,-1000.0,0.000164,2]
[421864451,1778247033000,-952.99619113,0.00016354,2]
[421864454,1778247033000,-314.0,0.000164,2]
[421864466,1778247033000,-326.0,0.00017844,2]
[421864456,1778247033000,-609.34080864,0.00016438,2]
[421864457,1778247033000,-150.15,0.00016549,2]
[421864458,1778247033000,-1982.0,0.00017,3]
[421864459,1778247033000,-237.32707313,0.00017179,2]
[421864467,1778247033000,-166.83339655,0.00018,2]
[421864468,1778247033000,-350.0,0.00018,2]
[421864469,1778247033000,-168.9,0.00018021,2]
[421864455,1778247033000,-529.7,0.00016438,2]
[421864471,1778247033000,-150.15,0.00018291,2]
[421864463,1778247033000,-166.58,0.00017483,2]
[421864461,1778247033000,-150.15,0.0001742,2]
[421864464,1778247033000,-4253.02605509,0.00017572,2]
[421864470,1778247033000,-166.83339655,0.000182,2]